Cogmind - Beta 11 @@@ ROGUE MODE // 2022.04.21 @ 17:03:18 Player: CrossedViper Result: Destroyed by as-01534 with Assembled Focal Cannon Performance ------------- Evolutions (3) 1500 Regions Visited (12) 2400 Robots Destroyed (132) 660 Value Destroyed (3835) 3835 Prototype IDs (47) 940 Alien Tech Used (0) 0 Bonus (2890) 2890 TOTAL SCORE: 12225 Bonus ------- High Alert Combat Kills 27 Follower Combat Kills 1263 Aligned with FarCom 300 Destroyed Z-Imprinter 1000 Exposed GOLEM Chamber 500 Friendly Fire -200 Cogmind --------- Core Integrity 0/700 Matter 277/300 Energy 350/350 System Corruption 0% Temperature Cool (12) Movement Core (1100) Ox21 Location -7/Deep Caves Parts ------- > --- POWER (2) -------- Enhanced Fission Core > --- PROPULSION (2) --- (None) > --- UTILITY (7) ------ High-capacity Storage Unit > --- WEAPON (2) ------- Heavy Wave Gun Heavy Wave Gun > --- INVENTORY (20) --- Enhanced Fission Core Heavy Antimatter Reactor Heavy Antimatter Reactor Zionite Biocell Enhanced Optical Array 0b10 Decoder Chip [Looter] Tactical Coordination Suite Tactical Coordination Suite Improved Armor Integrity Analyzer Trap Reconfigurator Cooled Pulse Rifle Cooled Pulse Rifle Heavy Wave Gun Heavy Missile Launcher CR-A16's Pointy Stick Peak State ------------ > --- POWER ------------ Enhanced Fission Core Enhanced Fission Core > --- PROPULSION ------- Improved Heavy Treads > --- UTILITY ---------- High-capacity Storage Unit Army-in-a-Box > --- WEAPON ----------- Heavy Wave Gun Heavy Wave Gun > --- INVENTORY -------- Heavy Antimatter Reactor Heavy Antimatter Reactor Armored Treads Experimental Cooling System Medium Matter Pod Enhanced Optical Array Tactical Coordination Suite Medium Insulated Plating Trap Reconfigurator Cooled Pulse Rifle Cooled Pulse Rifle Heavy Wave Gun Heavy Wave Gun AWS/Thermal Ion Burst Cannon Heavy Missile Launcher Great Maul CR-A16's Pointy Stick [Rating: 110] Favorites ----------- Power Enhanced Fission Core Engine Ion Engine Power Core Enhanced Fission Core Reactor Heavy Antimatter Reactor Propulsion Light Treads Treads Light Treads Leg Zionite Composite Leg I Hover Unit Zionite Glidesys I Utility High-capacity Storage Unit Device Army-in-a-Box Storage High-capacity Storage Unit Processor Advanced Targeting Computer Hackware Hacking Suite Protection Hardened Light Armor Plating Weapon Heavy Assault Rifle Energy Gun Heavy Wave Gun Energy Cannon Heavy Particle Cannon Ballistic Gun Heavy Assault Rifle Launcher Heavy Missile Launcher Impact Weapon Great Maul Slashing Weapon Ionic Axe Build | -11 -10 -10 -9 -9 -9 -8 -8 -7 -7 -7 -7 -7 ------- Run | Scr Mat Min Mat Min Exi Min Mat Fac Low Low Zio Dee Slots Evolved 6 | . . . 2 . . . 2 2 . . . . Power 1 | . . . . . . . 1 . . . . . Propulsion . | . . . . . . . . . . . . . Utility 5 | . . . 2 . . . 1 2 . . . . Weapon . | . . . . . . . . . . . . . Parts Attached 137 | 6 8 . 22 1 2 4 12 48 2 . 11 21 Power 16 | 1 1 . 5 . . 1 2 6 . . . . Engine 10 | 1 1 . 5 . . 1 1 1 . . . . Core 5 | . . . . . . . 1 4 . . . . Reactor 1 | . . . . . . . . 1 . . . . Propulsion 25 | 2 1 . 7 . . 2 1 7 . . . 5 Treads 22 | 2 1 . 7 . . 2 1 7 . . . 2 Leg 2 | . . . . . . . . . . . . 2 Wheel . | . . . . . . . . . . . . . Hover 1 | . . . . . . . . . . . . 1 Flight . | . . . . . . . . . . . . . Utility 44 | 1 2 . 5 . 1 . 5 12 . . 8 10 Device 15 | . . . 1 . . . 3 7 . . 1 3 Storage 6 | 1 1 . . . 1 . . . . . 2 1 Processor 10 | . 1 . 1 . . . 1 2 . . 5 . Hackware 1 | . . . . . . . . 1 . . . . Protection 12 | . . . 3 . . . 1 2 . . . 6 Artifact . | . . . . . . . . . . . . . Weapon 52 | 2 4 . 5 1 1 1 4 23 2 . 3 6 Energy Gun 26 | 1 2 . 2 1 . . 2 10 1 . 2 5 Energy Cannon 3 | . . . . . . . . 3 . . . . Ballistic Gun 15 | 1 2 . 3 . 1 1 2 5 . . . . Ballistic Cannon . | . . . . . . . . . . . . . Launcher 4 | . . . . . . . . 2 1 . . 1 Special Weapon . | . . . . . . . . . . . . . Impact Weapon 3 | . . . . . . . . 2 . . 1 . Slashing Weapon 1 | . . . . . . . . 1 . . . . Piercing Weapon . | . . . . . . . . . . . . . Special Melee Weapon . | . . . . . . . . . . . . . Unidentified Prototypes 22 | . . . 2 . . . 1 9 . . 5 5 Parts Lost 29 | . 2 . 1 . . 2 4 13 . . . 7 Power 3 | . . . . . . . . 3 . . . . Propulsion 8 | . . . 1 . . . 1 3 . . . 3 Utility 14 | . . . . . . 2 2 6 . . . 4 Weapon 4 | . 2 . . . . . 1 1 . . . . Highest Loss Streak 7 | . 1 . 1 . . 2 1 7 . . . 6 To Critical Strikes . | . . . . . . . . . . . . . Average Slot Usage (%) 65 | . 90 100 99 100 100 78 79 86 53 53 46 44 Engine 4 | . 14 14 11 11 11 9 11 6 . . . . Core 9 | . . . . . . . 5 5 15 15 15 13 Treads 12 | . 28 28 21 22 22 22 18 13 7 7 7 6 Device 7 | . . . . . . . 10 15 7 7 6 12 Storage 6 | . 14 14 11 11 11 11 9 7 7 7 6 1 Processor 5 | . 5 14 22 22 22 3 3 12 . . . . Protection 3 | . . . 11 11 11 11 3 5 . . . 3 Energy Gun 7 | . 13 14 11 11 7 . 4 7 12 15 7 2 Ballistic Gun 4 | . 14 14 11 11 14 20 12 5 . . . . Naked Turns . | . . . . . . . . . . . . . Heaviest Build 163 | 14 31 31 40 39 59 59 70 163 157 154 158 156 Greatest Support 75 | 40 40 40 40 40 40 40 43 75 75 75 75 75 Greatest Overweight (x) 21 | . . . . . 1 1 1 2 2 2 2 21 Average Overweight (x) 1 | . . . . . . 1 1 1 2 2 1 1 Largest Inventory Capacity 20 | 8 15 15 15 15 20 20 20 20 20 20 20 20 Average Capacity 15 | 6 11 15 15 15 18 20 20 20 20 20 19 7 Most Carried 20 | 5 9 15 15 15 20 20 20 20 20 20 20 20 Average Carried 14 | 2 7 13 14 14 16 18 18 19 19 19 18 6 Final Capacity 20 | 8 15 15 15 15 20 20 20 20 20 20 20 20 Final Carried 20 | 4 9 14 15 15 20 17 19 20 20 20 20 15 Class Distribution -------------------- 73% | Mutant 26% | Scavenger-Mutant Dominant Class ---------------- Mutant | -10/Materials Mutant | -10/Mines Scavenger-Mutant | -9/Materials Scavenger-Mutant | -9/Mines Scavenger-Mutant | -9/Exiles Mutant | -8/Mines Scavenger-Mutant | -8/Materials Scavenger-Mutant | -7/Factory Mutant | -7/Lower Caves Mutant | -7/Lower Caves Mutant | -7/Zion Mutant | -7/Deep Caves Resources | -11 -10 -10 -9 -9 -9 -8 -8 -7 -7 -7 -7 -7 ----------- Run | Scr Mat Min Mat Min Exi Min Mat Fac Low Low Zio Dee Matter Collected 2726 | 222 268 76 478 . 40 . 551 724 100 18 90 159 Remotely . | . . . . . . . . . . . . . Salvage Created 5235 | . 640 251 1520 . . 140 760 1747 177 . . . Parts 278 | . 44 18 84 . . 5 32 91 4 . . . Haulers Intercepted 14 | . 2 . 5 . . . 1 6 . . . . Recyclers Shooed 10 | . 1 2 1 . . . 3 3 . . . . Parts Field Recycled . | . . . . . . . . . . . . . Retrieved Matter . | . . . . . . . . . . . . . Parts Self-Destructed 15 | . . . . . . . . . 2 6 7 . Prevented 1 | . . . . . . . . . 1 . . . Kills | -11 -10 -10 -9 -9 -9 -8 -8 -7 -7 -7 -7 -7 ------- Run | Scr Mat Min Mat Min Exi Min Mat Fac Low Low Zio Dee Combat Hostiles Destroyed 89 | . 13 2 26 . . 3 12 28 5 . . . Guns 77 | . 13 2 26 . . 3 12 20 1 . . . Cannons 2 | . . . . . . . . 2 . . . . AOE 9 | . . . . . . . . 5 4 . . . Classes Destroyed 16 | . 7 1 3 . . 1 . 4 . . . . Worker 10 | . 2 . 3 . . . . 5 . . . . Builder 3 | . . . 1 . . . . 2 . . . . Tunneler 2 | . . 2 . . . . . . . . . . Hauler 14 | . 2 . 5 . . . 1 6 . . . . Recycler 6 | . 1 1 . . . . 3 1 . . . . Operator 1 | . 1 . . . . . . . . . . . Watcher 6 | . 2 . 1 . . . 1 2 . . . . Swarmer 13 | . 5 . . . . . 4 3 1 . . . Grunt 49 | . 8 2 18 . . 2 5 11 3 . . . Brawler 3 | . . . . . . 1 . 1 1 . . . Duelist 1 | . . . 1 . . . . . . . . . Protector 1 | . . . . . . . . 1 . . . . Sentry 12 | . . . 7 . . . 3 2 . . . . Specialist 2 | . . . . . . . . 2 . . . . Hunter 4 | . . . . . . . . 4 . . . . Programmer 4 | . . . . . . . . 4 . . . . Thug 1 | . . 1 . . . . . . . . . . Best Kill Streak 11 | . 7 2 4 . . 2 4 11 5 . . . Combat Bots Only 8 | . 3 2 4 . . 2 4 8 5 . . . Max Kills in Single Turn 3 | . 2 1 2 . . 1 1 3 2 . . . Gunslinging . | . . . . . . . . . . . . . Exploded 2 | . . . . . . . . 2 2 . . . Melee . | . . . . . . . . . . . . . Uniques/NPCs Destroyed 1 | . . . . . . . . . . . . 1 Z-Imprinter (-7/Deep Caves) Combat | -11 -10 -10 -9 -9 -9 -8 -8 -7 -7 -7 -7 -7 -------- Run | Scr Mat Min Mat Min Exi Min Mat Fac Low Low Zio Dee Damage Taken 8447 | . 553 32 872 . . 633 651 2372 120 64 . 3150 Core 1126 | . 64 22 150 . . 110 39 192 . . . 549 Absorbed by Shields 728 | . . . . . . . 272 456 . . . . Reduced by Siege Mode 29 | . . . . . . . . . . . . 29 Redirected to Shielding 138 | . . . . . . . . . . . . 138 Core Remaining (%) 73 | 100 . 65 . . . 35 92 . . . . . Volleys Fired 334 | . 48 22 86 . . 18 67 75 3 . . 15 Largest 2 | . 2 2 2 . . 2 2 2 2 . . 2 Hottest 176 | . 79 79 79 . . 46 88 98 40 . . 176 Shots Fired 718 | . 88 41 170 . . 34 129 191 4 . . 61 Gun 703 | . 88 41 170 . . 34 129 179 2 . . 60 Cannon 8 | . . . . . . . . 8 . . . . Launcher 7 | . . . . . . . . 4 2 . . 1 Special . | . . . . . . . . . . . . . Kinetic 354 | . 42 19 84 . . 34 100 75 . . . . Thermal 357 | . 46 22 86 . . . 29 112 2 . . 60 Explosive 7 | . . . . . . . . 4 2 . . 1 Electromagnetic . | . . . . . . . . . . . . . Robot Hit Streak 29 | . 8 7 19 . . 9 12 26 5 . . 29 Robot Miss Streak 4 | . 4 3 3 . . 2 3 3 . . . 1 Penetration Max . | . . . . . . . . . . . . . Secondary Targets 9 | . 1 1 3 . . 1 1 1 1 . . . Max Gunslinging Chain 1 | . 1 1 1 . . 1 1 1 1 . . . Autonomous 83 | . . . . . . . . 44 . . . 39 Shots Hit Robots 526 | . 54 22 124 . . 25 91 156 4 . . 50 Core Hits 247 | . 27 13 52 . . 7 34 100 8 . . 6 Critical Kills 2 | . . . 1 . . . 1 . . . . . Critical Parts Destroyed 1 | . . . 1 . . . . . . . . . Critical Strikes 14 | . 2 1 7 . . . 3 1 . . . . Burn 10 | . 2 1 4 . . . 2 1 . . . . Destroy 4 | . . . 3 . . . 1 . . . . . Melee Attacks 16 | . . . . . . . . . . . 16 . Impact 16 | . . . . . . . . . . . 16 . Slashing . | . . . . . . . . . . . . . Piercing . | . . . . . . . . . . . . . Sneak Attacks . | . . . . . . . . . . . . . Combat Hostiles . | . . . . . . . . . . . . . Follow-up Attacks . | . . . . . . . . . . . . . Damage Inflicted 11133 | 4 818 325 2027 20 . 403 1396 4477 466 . . 1197 Guns 9331 | . 800 315 2017 . . 403 1379 3181 39 . . 1197 Cannons 206 | . . . . . . . . 206 . . . . Explosions 1501 | . . . . . . . . 1074 427 . . . Melee . | . . . . . . . . . . . . . Ramming 95 | 4 18 10 10 20 . . 17 16 . . . . Kinetic 4067 | . 417 139 1048 . . 403 1042 1018 . . . . Thermal 5470 | . 383 176 969 . . . 337 2369 39 . . 1197 Explosive 1501 | . . . . . . . . 1074 427 . . . Electromagnetic . | . . . . . . . . . . . . . Impact . | . . . . . . . . . . . . . Slashing . | . . . . . . . . . . . . . Piercing . | . . . . . . . . . . . . . Highest Corruption 8 | . . . . . . 5 2 8 8 8 8 . Average Corruption 6 | . . . . . . 4 2 4 8 8 8 . Corruption Purged . | . . . . . . . . . . . . . Corruption Blocked . | . . . . . . . . . . . . . Effects 67 | . . . . . . 3 9 12 23 16 4 . Message Errors 15 | . . . . . . . 3 3 3 5 1 . Matter Fused 11 | . . . . . . . 2 2 5 2 . . Heat Flow Errors 11 | . . . . . . 1 1 1 3 4 1 . Energy Discharges 10 | . . . . . . . . 2 5 3 . . Parts Rejected 1 | . . . . . . 1 . . . . . . Data Loss (minor) 5 | . . . . . . . . 1 4 . . . Data Loss (major) 7 | . . . . . . . 1 1 2 2 1 . Misfires 2 | . . . . . . . 1 1 . . . . Alerts 3 | . . . . . . . . 1 1 . 1 . Weapon Failures 2 | . . . . . . 1 1 . . . . . Overload Shots . | . . . . . . . . . . . . . Overflow Damage 33 | . . . . . . . . 33 . . . . Projectiles . | . . . . . . . . . . . . . Explosions 33 | . . . . . . . . 33 . . . . Melee . | . . . . . . . . . . . . . Knockbacks 1 | . . . 1 . . . . . . . . . Impact 1 | . . . 1 . . . . . . . . . Kinetic . | . . . . . . . . . . . . . Secondary . | . . . . . . . . . . . . . Self-Inflicted Damage 96 | . . . . . . . . 96 . . . . Shots 1 | . . . . . . . . 1 . . . . Rammed 19 | 1 2 3 4 2 . . 5 2 . . . . Targets Rammed 22 | 1 2 3 5 2 . . 5 2 . . . 2 Kicked 2 | . . . . . . . . . . . . 2 Crushed 1 | . . . 1 . . . . . . . . . Highest Temperature 498 | . 335 90 387 . . 211 498 306 278 265 142 488 Average Temperature 86 | . 81 40 85 . . 49 86 78 99 112 75 208 Received Heat Transfer 2306 | . 219 18 411 . . 315 334 583 12 . . 414 Effects 6 | . 1 . . . . . 3 1 1 . . . Shutdowns 2 | . . . . . . . 2 . . . . . Energy Bleed 3 | . 1 . . . . . . 1 1 . . . Damage (minor) 1 | . . . . . . . 1 . . . . . Siege Activations 1 | . . . . . . . . . . . . 1 Total Turns 9 | . . . . . . . . . . . . 9 Longest Duration 9 | . . . . . . . . . . . . 9 Robots Corrupted . | . . . . . . . . . . . . . Combat Hostiles . | . . . . . . . . . . . . . Parts Fried . | . . . . . . . . . . . . . Impact Corruptions . | . . . . . . . . . . . . . Robots Melted 1 | . . . . . . . . 1 . . . . Combat Hostiles 1 | . . . . . . . . 1 . . . . Parts Melted 19 | . 3 1 6 . . . 3 6 . . . . Heat Transferred 10915 | . 1110 518 2701 . . . 962 3700 74 . . 1850 Parts Sabotaged . | . . . . . . . . . . . . . Parts Stolen . | . . . . . . . . . . . . . Parts Stripped . | . . . . . . . . . . . . . Power Chain Reactions . | . . . . . . . . . . . . . Missiles Intercepted . | . . . . . . . . . . . . . Alert | -11 -10 -10 -9 -9 -9 -8 -8 -7 -7 -7 -7 -7 ------- Run | Scr Mat Min Mat Min Exi Min Mat Fac Low Low Zio Dee Peak Influence 483 | . 349 146 460 142 . 70 177 483 . . . . Initial 142 | . . 96 11 142 . . 27 18 . . . . Average 142 | . 204 74 207 142 . 41 61 163 . . . . Maximum Alert Level 2 | . 1 . 2 . . . . 2 . . . . Low Security (%) 72 | 100 54 100 42 100 . 100 100 66 . . . . Level 1 24 | . 45 . 55 . . . . 26 . . . . Level 2 2 | . . . 2 . . . . 6 . . . . Level 3 . | . . . . . . . . . . . . . Level 4 . | . . . . . . . . . . . . . Level 5 . | . . . . . . . . . . . . . High Security . | . . . . . . . . . . . . . Max Security . | . . . . . . . . . . . . . Squads Dispatched 25 | . 3 1 7 . . . 2 12 . . . . Investigation 8 | . . 1 4 . . . 1 2 . . . . Extermination 2 | . . . . . . . . 2 . . . . Reinforcement 11 | . 3 . 3 . . . 1 4 . . . . Assault . | . . . . . . . . . . . . . Garrison 4 | . . . . . . . . 4 . . . . Intercept . | . . . . . . . . . . . . . Searches Triggered . | . . . . . . . . . . . . . Construction Impeded 2 | . . . . . . . 1 1 . . . . Haulers Reinforced 2 | . . . . . . . . 2 . . . . Active Scanning Responses . | . . . . . . . . . . . . . Cargo Convoy Interrupts 1 | . . . . . . . . 1 . . . . Stealth | -11 -10 -10 -9 -9 -9 -8 -8 -7 -7 -7 -7 -7 --------- Run | Scr Mat Min Mat Min Exi Min Mat Fac Low Low Zio Dee Distress Signals 10 | . 2 . 5 . . . 1 2 . . . . Communications Jammed . | . . . . . . . . . . . . . Distress Signals . | . . . . . . . . . . . . . Times Spotted 163 | . 26 2 38 . . 3 15 48 14 6 . 11 Peak Tracking Total 11 | . 6 2 4 . . 3 4 11 9 5 . 2 Tactical Retreats 2 | . . . 1 . . . . 1 . . . . Traps | -11 -10 -10 -9 -9 -9 -8 -8 -7 -7 -7 -7 -7 ------- Run | Scr Mat Min Mat Min Exi Min Mat Fac Low Low Zio Dee Traps Triggered 4 | . 1 . 1 . . . 1 1 . . . . Indirectly . | . . . . . . . . . . . . . Trap Hack Attempts . | . . . . . . . . . . . . . Triggered . | . . . . . . . . . . . . . Disarmed . | . . . . . . . . . . . . . Reprogrammed . | . . . . . . . . . . . . . Reused . | . . . . . . . . . . . . . Traps Extracted . | . . . . . . . . . . . . . Installed . | . . . . . . . . . . . . . Triggered 1 | . . . . . . . . . . 1 . . Machines | -11 -10 -10 -9 -9 -9 -8 -8 -7 -7 -7 -7 -7 ---------- Run | Scr Mat Min Mat Min Exi Min Mat Fac Low Low Zio Dee Machines Disabled 10 | . . 1 . . . . 1 2 2 . . 4 Max in Single Turn 1 | . . 1 . . . . 1 1 . . . 1 Machines Sabotaged . | . . . . . . . . . . . . . Garrisons Compromised . | . . . . . . . . . . . . . Overloaded Fab Kills . | . . . . . . . . . . . . . Hacking | -11 -10 -10 -9 -9 -9 -8 -8 -7 -7 -7 -7 -7 --------- Run | Scr Mat Min Mat Min Exi Min Mat Fac Low Low Zio Dee Machines Accessed 17 | . 2 1 5 . 2 . 3 4 . . . . Terminals 11 | . 2 . 4 . . . 2 3 . . . . Fabricators . | . . . . . . . . . . . . . Repair Stations . | . . . . . . . . . . . . . Recycling Units 2 | . . . 1 . . . 1 . . . . . Scanalyzers 1 | . . . . . . . . 1 . . . . Garrison Access . | . . . . . . . . . . . . . Total Hacks 47 | . 6 1 16 . 2 . 8 14 . . . . Successful 22 | . 4 1 7 . 2 . 2 6 . . . . Failed 23 | . 1 . 8 . . . 6 8 . . . . Catastrophic 6 | . . . 3 . . . 2 1 . . . . Database Lockouts 2 | . 1 . 1 . . . . . . . . . Manual 34 | . 5 . 13 . 1 . 5 10 . . . . Terminals 36 | . 6 . 15 . . . 5 10 . . . . Fabricators . | . . . . . . . . . . . . . Repair Stations . | . . . . . . . . . . . . . Recycling Units 4 | . . . 1 . . . 3 . . . . . Scanalyzers 4 | . . . . . . . . 4 . . . . Garrison Access . | . . . . . . . . . . . . . Terminal Hacks 16 | . 4 1 6 . 2 . 2 1 . . . . Record 1 | . . . . . 1 . . . . . . . Part Schematic 1 | . . . 1 . . . . . . . . . Robot Analysis 3 | . 2 . 1 . . . . . . . . . Prototype ID Bank 1 | . 1 . . . . . . . . . . . Open Door 1 | . . 1 . . . . . . . . . . Branch Access Points 1 | . . . . . . . . 1 . . . . Alert Level 2 | . 1 . 1 . . . . . . . . . Unreport Threat 3 | . . . 1 . . . 2 . . . . . Hauler Manifests 1 | . . . 1 . . . . . . . . . Zone Layout 1 | . . . 1 . . . . . . . . . EX-Prototype ID Bank 1 | . . . . . 1 . . . . . . . Fabricator Hacks . | . . . . . . . . . . . . . Repair Station Hacks . | . . . . . . . . . . . . . Recycling Unit Hacks . | . . . . . . . . . . . . . Scanalyzer 4 | . . . . . . . . 4 . . . . Insert Component 2 | . . . . . . . . 2 . . . . Analyze 2 | . . . . . . . . 2 . . . . Garrison Access Hacks . | . . . . . . . . . . . . . Unauthorized Hacks 2 | . . . 1 . . . . 1 . . . . Terminals 1 | . . . . . . . . 1 . . . . Botnet 1 | . . . . . . . . 1 . . . . Fabricators . | . . . . . . . . . . . . . Repair Stations . | . . . . . . . . . . . . . Recycling Units 1 | . . . 1 . . . . . . . . . Tunnel 1 | . . . 1 . . . . . . . . . Scanalyzers . | . . . . . . . . . . . . . Garrison Access . | . . . . . . . . . . . . . Data Cores Recovered . | . . . . . . . . . . . . . Used . | . . . . . . . . . . . . . Hacking Detections 12 | . 2 . 4 . . . 3 3 . . . . Full Trace Events 7 | . 1 . 2 . . . 2 2 . . . . Feedback Events . | . . . . . . . . . . . . . Feedback Blocked . | . . . . . . . . . . . . . Robot Schematics Acquired . | . . . . . . . . . . . . . Robots Built . | . . . . . . . . . . . . . Authchips . | . . . . . . . . . . . . . Time . | . . . . . . . . . . . . . Total Robot Build Rating . | . . . . . . . . . . . . . Part Schematics Acquired 3 | . . . 1 . . . . 2 . . . . Parts Built . | . . . . . . . . . . . . . Authchips . | . . . . . . . . . . . . . Time . | . . . . . . . . . . . . . Total Part Build Rating . | . . . . . . . . . . . . . Parts Repaired . | . . . . . . . . . . . . . Time . | . . . . . . . . . . . . . Parts Recycled . | . . . . . . . . . . . . . Recycled Matter . | . . . . . . . . . . . . . Retrieved Matter . | . . . . . . . . . . . . . Retrieved Components . | . . . . . . . . . . . . . Parts Scanalyzed 2 | . . . . . . . . 2 . . . . Part Schematics Acquired 2 | . . . . . . . . 2 . . . . Parts Damaged . | . . . . . . . . . . . . . Bothacking | -11 -10 -10 -9 -9 -9 -8 -8 -7 -7 -7 -7 -7 ------------ Run | Scr Mat Min Mat Min Exi Min Mat Fac Low Low Zio Dee Used RIF Installer . | . . . . . . . . . . . . . Robots Hacked . | . . . . . . . . . . . . . Non-combat . | . . . . . . . . . . . . . Combat . | . . . . . . . . . . . . . Robot Hacks Applied . | . . . . . . . . . . . . . Relay Couplers Released . | . . . . . . . . . . . . . Fabnet Peak Effective % . | . . . . . . . . . . . . . Robots Rewired . | . . . . . . . . . . . . . Allies Hacked . | . . . . . . . . . . . . . Hacks Repelled . | . . . . . . . . . . . . . Allies | -11 -10 -10 -9 -9 -9 -8 -8 -7 -7 -7 -7 -7 -------- Run | Scr Mat Min Mat Min Exi Min Mat Fac Low Low Zio Dee Total Allies 3 | . . . . . . . . . . . 3 . Largest Group 3 | . . . . . . . . . . . 3 3 Highest-Rated Group 93 | . . . . . . . . . . . 93 93 Highest-Rated Ally 31 | . . . . . . . . . . . 31 31 Total Orders 57 | . . . . . . . . 4 7 3 1 42 STAY 10 | . . . . . . . . . . . . 10 FOLLOW 4 | . . . . . . . . . . . . 4 EXPLORE 2 | . . . . . . . . . . . . 2 RETURN 41 | . . . . . . . . 4 7 3 1 26 Ally Attacks 459 | . . . . . . . . 31 110 94 . 224 Total Damage 10895 | . . . . . . . . 370 2598 1981 . 5946 Kills 63 | . . . . . . . . 6 14 17 . 26 Allies Corrupted . | . . . . . . . . . . . . . Allies Melted . | . . . . . . . . . . . . . Intel | -11 -10 -10 -9 -9 -9 -8 -8 -7 -7 -7 -7 -7 ------- Run | Scr Mat Min Mat Min Exi Min Mat Fac Low Low Zio Dee Robot Analysis Total 3 | . 2 . 1 . . . . . . . . . Derelict Logs Recovered 8 | . . 2 . 2 . . . . 1 2 1 . Drone Launches 131 | . . . . . . . . 30 35 5 . 61 Drone Recoveries 101 | . . . . . . . . 30 17 4 6 44 Exploration | -11 -10 -10 -9 -9 -9 -8 -8 -7 -7 -7 -7 -7 ------------- Run | Scr Mat Min Mat Min Exi Min Mat Fac Low Low Zio Dee Turns Passed 15673 | 75 635 723 1128 235 762 91 1049 2034 832 620 3850 3639 Spaces Moved 5824 | 48 284 394 497 144 353 14 337 676 250 192 1360 1275 Core 18 | 17 . . . . . . . . . . . 1 Treads 5501 | 31 284 394 497 144 353 14 337 676 250 192 1360 969 Legs 305 | . . . . . . . . . . . . 305 Wheels . | . . . . . . . . . . . . . Hover . | . . . . . . . . . . . . . Flight . | . . . . . . . . . . . . . Fastest Speed 50 | 50 160 160 160 160 160 240 240 160 320 320 160 115 Average Speed 241 | 121 160 160 160 160 213 240 240 248 320 320 276 267 Slowest Speed 1100 | 160 160 160 160 160 240 240 240 330 320 320 320 1100 Overloaded Moves . | . . . . . . . . . . . . . Propulsion Burnouts . | . . . . . . . . . . . . . Robots Hopped . | . . . . . . . . . . . . . Cave-ins Triggered . | . . . . . . . . . . . . . Exploration Rate (%) 47 | 4 49 75 49 42 69 7 29 26 71 45 82 70 Regions Visited 12 Branch Regions 8 Pre-discovered Areas 7 | . . 1 1 . 1 . . . . . 4 . Known Exits Taken 2 | . . . 1 . . . . 1 . . . . Unknown Exits Taken 10 | 1 1 1 . 1 1 1 1 . 1 1 1 . Scrap Searched 10 | . . 1 . 2 . . . . 2 1 4 . Spaces Dug 5 | . . . . . . . . . . . 3 2 Terrain Destroyed 74 | . . . . . . . . 46 17 . 3 8 Melee 3 | . . . . . . . . . . . 3 . Projectile 8 | . . . . . . . . . . . . 8 AOE 63 | . . . . . . . . 46 17 . . . Terrain Rammed . | . . . . . . . . . . . . . Walls Destroyed . | . . . . . . . . . . . . . Machines Disabled . | . . . . . . . . . . . . . Actions | -11 -10 -10 -9 -9 -9 -8 -8 -7 -7 -7 -7 -7 --------- Run | Scr Mat Min Mat Min Exi Min Mat Fac Low Low Zio Dee Total 6820 | 64 378 444 664 148 364 39 440 890 279 201 1419 1490 Wait 255 | . 17 19 23 . . . 10 18 23 4 1 140 Move 5812 | 47 283 393 496 143 352 13 336 675 249 191 1359 1275 Hop . | . . . . . . . . . . . . . Pick Up 123 | 10 13 6 12 1 4 1 6 30 1 3 18 18 Fast Attach 48 | . 2 . 3 . . . 8 15 . . 8 12 Attach 51 | 6 3 . 6 . 1 4 3 18 . . 2 8 Detach 14 | . . . 1 . . . . 9 . . . 4 Swap 38 | . 3 . 13 1 1 . 1 15 2 . 1 1 Drop 107 | . 7 1 19 1 6 3 4 33 1 3 14 15 Fire 334 | . 48 22 86 . . 18 67 75 3 . . 15 Melee 16 | . . . . . . . . . . . 16 . Ram . | . . . . . . . . . . . . . Kick 2 | . . . . . . . . . . . . 2 Crush 20 | 1 2 3 5 2 . . 5 2 . . . . Escape Stasis . | . . . . . . . . . . . . . Rewire . | . . . . . . . . . . . . . Trap . | . . . . . . . . . . . . . Miscellaneous . | . . . . . . . . . . . . . Route ------- -11/Scrapyard -10/Materials (discovered 3 exits: *Mat x2 / *Min) -10/Mines -9/Materials (discovered 2 exits: *Min x2) -9/Mines (discovered 2 exits: *Exi / [*Zio]) -9/Exiles -8/Mines -8/Materials (discovered 2 exits: *Fac / Sto) -7/Factory (discovered 4 exits: [*Fac x2] / *Low x2) -7/Lower Caves -7/Lower Caves -7/Zion (discovered 2 exits: [*Dee] / [*Pro]) -7/Deep Caves (discovered 1 exit: [*Pro]) History --------- Turn | Location | Event 4 | -11/Scrapyard | Discovered new exit (range 15) 76 | -11/Scrapyard | Entered Materials 316 | -10/Materials | Build established: Mutant 392 | -10/Materials | Discovered new exit (range 15) 402 | -10/Materials | Discovered new exit (range 15) 528 | -10/Materials | Discovered new exit (range 15) 600 | -10/Materials | Central database locked down 711 | -10/Materials | Entered Mines 782 | -10/Mines | Met a Derelict shopkeep closing up shop 1120 | -10/Mines | Found a hidden stash of uninstalled traps 1138 | -10/Mines | Learned location of Zion (-7) 1222 | -10/Mines | Discovered new exit (range 9) 1434 | -10/Mines | Entered Materials 1434 | -9/Materials | Evolved 2 slots: Utility x2 1435 | -9/Materials | Identified exit to Mines 1907 | -9/Materials | Build established: Scavenger-Mutant 2359 | -9/Materials | Central database locked down 2562 | -9/Materials | Entered Mines 2624 | -9/Mines | A Derelict revealed a hidden shortcut to a safe place 2769 | -9/Mines | Received a Rocket Launcher from a helpful Derelict 2791 | -9/Mines | Deemed a non-threat by the Exiles lab entrance 2791 | -9/Mines | Discovered new exit (range 5) 2797 | -9/Mines | Entered Exiles 2836 | -9/Exiles | Met 8R-AWN 2865 | -9/Exiles | Met EX-HEX 3043 | -9/Exiles | Met EX-DEC 3202 | -9/Exiles | Met EX-BIN 3229 | -9/Exiles | Aligned with FarCom system 3231 | -9/Exiles | Given EX-Vault access code 3286 | -9/Exiles | Opened EX-Vault 3306 | -9/Exiles | Found AWS/Thermal 3309 | -9/Exiles | Found Trap Reconfigurator 3330 | -9/Exiles | Found Army-in-a-Box 3382 | -9/Exiles | Warned to stay clear of 0b10 Research branches 3535 | -9/Exiles | Discovered new exit (range 10) 3559 | -9/Exiles | Stole three prototypes: Trap Reconfigurator, Army-in-a-Box, AWS/Thermal 3559 | -9/Exiles | Entered Mines 3576 | -8/Mines | Core integrity fell below 50% 3621 | -8/Mines | Discovered new exit (range 12) 3650 | -8/Mines | Entered Materials 3650 | -8/Materials | Evolved 2 slots: Power x1, Utility x1 3651 | -8/Materials | Identified exit to Storage 4301 | -8/Materials | Discovered new exit (range 8) 4699 | -8/Materials | Entered Factory 4699 | -7/Factory | Evolved 2 slots: Utility x2 4701 | -7/Factory | FarCom data flow suspended 5288 | -7/Factory | Discovered new exit (range 16) 5297 | -7/Factory | Garrison activated, responded to threat 5387 | -7/Factory | Build established: Mutant 5739 | -7/Factory | Garrison activated, responded to threat 5744 | -7/Factory | Build established: Scavenger-Mutant 6000 | -7/Factory | Discovered new exit (range 7) 6264 | -7/Factory | Identified exit to Lower Caves 6345 | -7/Factory | Cargo convoy interrupted 6403 | -7/Factory | Destroyed 8 combat bots 6412 | -7/Factory | Lost 7 parts (1p2n3u1w) 6631 | -7/Factory | Build established: Mutant 6733 | -7/Factory | Entered Lower Caves 6733 | -7/Lower Caves | Spotted JJ-BL2(f) 6733 | -7/Lower Caves | Spotted A2-K4R(f) 6734 | -7/Lower Caves | Encountered a Master Thief 6734 | -7/Lower Caves | Encountered a Master Thief 6748 | -7/Lower Caves | Allies destroyed A2-K4R(f) 6748 | -7/Lower Caves | Allies destroyed JJ-BL2(f) 6785 | -7/Lower Caves | Learned Factory terminal intel 6836 | -7/Lower Caves | Spotted B-75 Beast 6903 | -7/Lower Caves | Allies destroyed B-75 Beast 6937 | -7/Lower Caves | Attracted the attention of an 0b10 outpost 7484 | -7/Lower Caves | Discovered new exit (range 15) 7499 | -7/Lower Caves | Encountered a Warlord checkpoint 7565 | -7/Lower Caves | Entered another Lower Caves area 7565 | -7/Lower Caves | Accompanied by 11 allies 7850 | -7/Lower Caves | Learned 8 Factory zone layouts 7993 | -7/Lower Caves | Discovered new exit (range 18) 7998 | -7/Lower Caves | Spotted C3-D60(f) 7999 | -7/Lower Caves | Spotted DE-QK2(f) 7999 | -7/Lower Caves | Spotted G2-SVE(f) 7999 | -7/Lower Caves | Spotted 4A-ELN(f) 8000 | -7/Lower Caves | Encountered a Master Thief 8000 | -7/Lower Caves | Encountered a Master Thief 8000 | -7/Lower Caves | Encountered a Master Thief 8001 | -7/Lower Caves | Encountered a Master Thief 8004 | -7/Lower Caves | Allies destroyed 4A-ELN(f) 8008 | -7/Lower Caves | Spotted JO-5IR(f) 8011 | -7/Lower Caves | Encountered a Master Thief 8013 | -7/Lower Caves | Allies destroyed DE-QK2(f) 8014 | -7/Lower Caves | Allies destroyed G2-SVE(f) 8023 | -7/Lower Caves | Allies destroyed C3-D60(f) 8027 | -7/Lower Caves | Allies destroyed JO-5IR(f) 8166 | -7/Lower Caves | Learned 4 Factory zone layouts 8185 | -7/Lower Caves | Entered Zion 8185 | -7/Zion | Accompanied by 6 allies 8246 | -7/Zion | Given A8's code to call for help 8359 | -7/Zion | System corruption cleaned by Quarantine Array 8424 | -7/Zion | Discovered new exit (range 10) 8770 | -7/Zion | Learned location of Data Miner (-6) 8974 | -7/Zion | Found CR-A16's Pointy Stick 9069 | -7/Zion | Learned location of 1 exit from Factory 9482 | -7/Zion | Learned location of Quarantine (-3) 10531 | -7/Zion | Given the Hacking Drone Bay 10768 | -7/Zion | Gained Derelict followers 11392 | -7/Zion | Discovered new exit (range 4) 11622 | -7/Zion | Found Prototype Processor 11622 | -7/Zion | Identified Exp. Target Analyzer 11627 | -7/Zion | Found Prototype Processor 11627 | -7/Zion | Identified Exp. Targeting Computer 11630 | -7/Zion | Found Prototype Processor 11630 | -7/Zion | Identified Spectral Analyzer 11633 | -7/Zion | Found Prototype Processor 11633 | -7/Zion | Identified Exp. Terrain Scan Processor 11640 | -7/Zion | Found Prototype Processor 11640 | -7/Zion | Identified Exp. Melee Analysis Suite 12024 | -7/Zion | Saw the warning signs outside the Deep Caves entrance 12035 | -7/Zion | Entered Deep Caves 12035 | -7/Deep Caves | Accompanied by 3 allies 12464 | -7/Deep Caves | Attacked by Z-Imprinter 12469 | -7/Deep Caves | Allies destroyed Z-Imprinter 12564 | -7/Deep Caves | Z-Facility disabled 12932 | -7/Deep Caves | Discovered new exit (range 10) 13788 | -7/Deep Caves | Spotted as-43879 13816 | -7/Deep Caves | Core integrity fell below 50% 13837 | -7/Deep Caves | Allies destroyed as-43879 14750 | -7/Deep Caves | Exposed GOLEM chamber 14998 | -7/Deep Caves | Found Prototype Protection 14998 | -7/Deep Caves | Identified Zio. Heavy Carapace 15006 | -7/Deep Caves | Found Zio. Heavy Carapace 15024 | -7/Deep Caves | Found Zio. Heavy Carapace 15344 | -7/Deep Caves | Found Prototype Protection 15344 | -7/Deep Caves | Identified Zio. Weapon Casing 15358 | -7/Deep Caves | Found Zio. Weapon Casing 15566 | -7/Deep Caves | Spotted as-31948 15610 | -7/Deep Caves | Spotted as-88656 15611 | -7/Deep Caves | Spotted as-01534 15656 | -7/Deep Caves | Core integrity fell below 20% 15668 | -7/Deep Caves | Spotted as-86993 15674 | -7/Deep Caves | Destroyed by as-01534 with Assembled Focal Cannon Last Messages --------------- 15381_ Acquired 6 matter. 15387_ Acquired 5 matter. 15397_ Acquired 49 matter. 15507_ Acquired Prototype Storage. 15624_ Destroyed Prototype Device. 15628_ AWS/Thermal suddenly breaks down. 15628_ Dropped Broken AWS/Thermal. 15647_ Zio. Heavy Carapace destroyed. 15656_ Kicked as-01534. 15658_ as-88656 Prototype Energy Cannon integration complete. 15658_ Kicked as-01534 out of the way. 15659_ as-88656 GOLEM Unit beginning Prototype Device integration. 15660_ as-88656 Prototype Device integration complete. 15661_ as-88656 GOLEM Unit beginning Prototype Device integration. 15661_ Carbon-fiber Leg destroyed. 15667_ Zio. Composite Leg I destroyed. 15667_ Exp. Cooling System destroyed. 15670_ Zio. Weapon Casing destroyed. 15671_ as-01534 Prototype Energy Cannon integration complete. 15672_ as-01534 GOLEM Unit beginning Prototype Device integration. Map ----- +----------------------------------------------------+ | ? ???????# ### #?????? ????????????## | | ????????# #?? #?????????????????#### | | ??####### #?? ?????????????????## # | | ???# #?? ?????????????????# | | #????# #?# ?????????????????# | | #???### #######?# ?????????????????# | | ##????# ##???# #????????????###### | | ??????# #???# #????????????# #?### | | ??????#### #???# #???????????## #???# | | #????????# #???# #??????????## #???## | | #????????# ##### ##????????## #????# | | #????????# #????????# #??##### | | #????????## #????????# #?## ## | | #?????????### ##### #????????# #?# ## | | #?#######?### ##?## #???###### #?# # | | #?# ### ### ##?## ### | | #?# #?# ## ### ## | | #?# ?# < # #### | | #?# ### #######?# | | #?# ### ### ## ## | | ### #### ### #### # | | ## #### G ##?# #?## # | | ## ### #??## ##?# ### | | #### #???###### #?# | | #### #####;;## ##?## | | ## ##### ;@ ; G[ #???# | | #### # ####; G #???# | | ???## ## ##??#"# ##???## | | ????## ###############???#########?????# | | ?????#####????????????????????????????????# ##### | | ???????????????????????????????????????????###???? | | | | | | | | | | | | | | | | | | | | | | | | | | | | | | | | | | | | | | | +----------------------------------------------------+ Best States ------------- Heat Dissipation 72 Energy Generation 41 Energy Capacity 600 Matter Stores 320 Matter Capacity 400 Sight Range 24 Terrain Scan Density 1010 Armor Coverage 3600 Resistance: EM 20 Weapon Shielding 100 Evasion (%) 55 Targeting Accuracy 16 Target Analysis 10 Recoil Reduction 2 Kinecelleration 30 Offensive Hacking 10 Item Schematics ----------------- Huge Storage Unit | -9/Materials | Hacked Med. Insulated Plating | -7/Factory | Scanalyzed Plasma Cannon | -7/Factory | Scanalyzed Robot Schematics ------------------ None Fabricated ------------ Nothing Alien Tech Used ----------------- None Achievements -------------- None Challenges ------------ None Game ------ Seed ZioniteMiniFlakker Manual? 0 Play Time 01:15:17 Cumulative 615.2 hours Start 2022.04.21 @ 15:12:31 End 2022.04.21 @ 17:03:18 Sessions 1 Manual Loads 0 Difficulty Rogue Special Mode None Game No. 418 Rogue 411 Adventurer 0 Explorer 7 Win Type - Total 38 Types 12/4/15/2/0/1/2/1/1 Lore% 86 Gallery% 95 Achievement% 82 Wizard Run 0 Options --------- ASCII 0 Keyboard 0 Movement Numpad Keybinds 0 Fullscreen 1 Font 18/X11Bold Map View 76x50 Tactical HUD 1 Map Filters NONE Filters NONE Steam 1 RUN: 3408c3eb-6907-4f76-a810-ae4a6be14631